bitfinex/quotes_ETHUSD_20251011
["timestamp","ask_amount","ask_price","bid_price","bid_amount"]
[1760164544567,2.6270165,3806.6,3805.5,2.62775221]
[1760164544568,2.62721056,3806.4,3805.5,2.62775221]
[1760164544768,2.62702212,3806.6,3805.5,2.62775221]
[1760164544970,1.92,3807.3,3806.3,2.62717436]
[1760164545259,2.6268844,3806.8,3805.1,0.002]
[1760164545459,2.62695206,3806.7,3805.9,3.26107122]
[1760164546157,2.62688711,3806.8,3806.1,0.6336]
[1760164546355,2.62698502,3806.7,3806.1,0.6336]
[1760164546577,1.92,3807.6,3806.0,0.6336]
[1760164546874,2.62681205,3806.9,3806.3,0.6336]
[1760164547058,2.62681205,3806.9,3806.2,3.26088877]
[1760164547253,0.001,3807.8,3806.2,0.6336]
[1760164547453,0.001,3807.8,3806.7,0.6336]
[1760164547679,2.62665603,3807.2,3806.5,0.6336]
[1760164547877,2.62668155,3807.1,3806.5,0.6336]
[1760164548059,2.62675107,3807.0,3806.3,0.6336]
[1760164548259,2.62681382,3806.9,3806.3,0.6336]
[1760164548576,4.54639419,3807.6,3806.9,0.1312]
[1760164548746,2.62674021,3807.0,3806.9,0.1312]
[1760164549677,2.62664932,3807.2,3806.4,0.1312]
[1760164549678,2.62701537,3806.7,3806.4,0.1312]
[1760164549877,2.62708524,3806.5,3806.4,0.1312]
[1760164550556,2.62697158,3806.7,3804.8,0.049308]
[1760164550753,14.59110619,3807.7,3804.8,0.049308]
[1760164551078,0.1312,3807.5,3806.6,0.1312]
[1760164551287,1.92,3807.1,3806.9,0.1312]
[1760164551583,2.62670534,3807.1,3806.9,0.1312]
[1760164551876,2.62670534,3807.1,3806.5,0.1312]
[1760164551877,2.6269976,3806.7,3806.5,0.1312]
[1760164552090,0.1312,3807.1,3806.5,0.1312]
[1760164552288,2.62688074,3806.8,3806.5,0.1312]
[1760164553597,1.92,3807.0,3806.7,0.1312]
[1760164553757,2.62687821,3806.8,3806.7,0.1312]
[1760164554160,2.62716982,3806.4,3805.6,0.6336]
[1760164554388,2.62716982,3806.4,3805.7,0.6336]
[1760164554690,2.62716982,3806.4,3806.3,0.1312]
[1760164555186,2.62728571,3806.3,3806.1,0.1312]
[1760164555490,2.62708687,3806.5,3806.1,0.1312]
[1760164555491,2.62729231,3806.2,3806.1,0.1312]
[1760164555663,2.62722662,3806.3,3806.1,0.1312]
[1760164555860,2.62729231,3806.2,3806.1,0.1312]
[1760164556687,2.62708687,3806.5,3806.1,0.1312]
[1760164556985,2.62729231,3806.2,3806.1,0.1312]
[1760164559271,1.92,3806.5,3806.1,0.1312]
[1760164559474,2.62727865,3806.3,3806.1,0.1312]
[1760164559869,0.001,3806.7,3806.1,0.1312]
[1760164560274,2.6272594,3806.3,3806.1,0.1312]
[1760164560480,2.62726823,3806.3,3806.1,0.1312]
[1760164560990,1.92,3806.5,3806.1,0.1312]
[1760164561183,2.62710145,3806.5,3806.1,0.1312]
[1760164561460,2.62701623,3806.6,3805.3,3.26148608]
[1760164561664,2.62730322,3806.2,3805.9,0.1312]
[1760164561967,1.92,3806.5,3805.9,0.1312]
[1760164562166,2.62729231,3806.2,3806.1,14.5]
[1760164562384,1.92,3806.5,3805.1,0.002]
[1760164562666,2.62755568,3805.9,3805.5,0.1312]
[1760164562861,2.62764771,3805.7,3805.6,14.5]
[1760164563477,2.62798276,3805.2,3805.1,0.002]
[1760164563680,2.62702532,3806.6,3805.1,0.002]
[1760164563881,1.92,3806.0,3805.1,0.002]
[1760164564092,2.62798276,3805.2,3805.1,0.002]
[1760164564527,2.62791594,3805.3,3805.1,0.002]
[1760164564830,2.62798276,3805.2,3805.1,0.002]
[1760164565735,2.62788888,3805.4,3805.1,0.002]
[1760164566030,2.62791871,3805.3,3805.1,0.002]
[1760164566229,1.92,3805.5,3805.1,0.002]
[1760164566436,1.92,3805.4,3805.1,0.002]
[1760164566789,2.62785511,3805.4,3805.1,0.002]
[1760164567016,4.54774853,3805.6,3805.1,0.002]
[1760164567294,2.62798276,3805.2,3805.1,0.002]
[1760164568489,1.92,3806.0,3805.1,0.002]
[1760164568696,1.92,3805.5,3805.1,0.002]
[1760164569193,2.62771536,3805.6,3805.1,0.002]
[1760164569194,2.62765361,3805.7,3805.1,0.002]
[1760164569394,1.92,3805.6,3804.9,2.62817519]
[1760164569726,1.92,3805.6,3804.8,0.047308]
[1760164569727,4.54771367,3805.6,3804.8,2.67555117]
[1760164570099,1.92,3805.7,3804.9,2.62817527]
[1760164570420,2.62818996,3804.9,3804.8,0.047308]
[1760164570598,1.92,3804.9,3804.8,0.047308]
[1760164570819,4.54818996,3804.9,3804.8,0.047308]
[1760164571024,4.54818996,3804.9,3804.8,14.547308]
[1760164573334,4.67938996,3804.9,3804.8,0.047308]
[1760164576321,4.67938996,3804.9,3804.8,0.049308]
[1760164580262,2.62806466,3805.1,3804.8,0.049308]
[1760164580469,0.001,3805.6,3804.8,0.049308]
[1760164580793,2.62870924,3805.6,3804.9,15.1336]
[1760164580976,2.6278547,3805.4,3804.9,14.5]
[1760164581166,1.92,3805.3,3804.9,14.5]
[1760164581363,1.92,3805.5,3804.9,14.5]
[1760164581563,2.62812089,3805.0,3804.9,14.5]
[1760164581966,2.62818996,3804.9,3804.8,0.049308]
[1760164582162,4.54818996,3804.9,3804.8,0.049308]
[1760164588395,5.18178996,3804.9,3804.8,0.049308]
[1760164588697,4.54818996,3804.9,3804.8,0.049308]
[1760164589265,2.62818996,3804.9,3804.8,14.549308]
[1760164590278,0.001,3805.6,3804.8,14.549308]
[1760164590475,2.62818996,3804.9,3804.8,14.549308]
[1760164592168,4.54818996,3804.9,3804.8,14.549308]
[1760164592380,4.67938996,3804.9,3804.8,14.549308]
[1760164592578,4.67938996,3804.9,3804.8,0.049308]
[1760164595131,4.54818996,3804.9,3804.8,0.049308]
[1760164595294,4.54818996,3804.9,3804.8,0.510508]
[1760164595617,4.67938996,3804.9,3804.8,0.510508]
[1760164598720,4.67938996,3804.9,3804.8,15.010508]
[1760164600828,2.0512,3804.9,3804.8,15.010508]
[1760164601082,1.92,3804.9,3804.8,15.141708]
[1760164601655,2.62906401,3805.1,3804.8,15.141708]
[1760164601856,2.62906401,3805.1,3804.9,0.4712]
[1760164602063,2.62818996,3804.9,3804.8,14.680508]
[1760164602357,2.62818996,3804.9,3804.8,14.549308]
[1760164602655,2.6281382,3805.0,3804.8,15.020508]
[1760164602862,2.6281382,3805.0,3804.9,0.4712]
[1760164603625,0.001,3805.1,3804.9,0.4712]
[1760164604027,0.001,3805.1,3805.0,3.26172089]
[1760164604232,0.001,3805.1,3805.0,3.39292089]
[1760164604463,0.001,3805.1,3805.0,3.86412089]
[1760164605065,0.001,3805.1,3805.0,1.236]
[1760164605732,0.001,3805.1,3805.0,18.36412089]
[1760164611559,0.001,3805.1,3805.0,15.736]
[1760164612068,0.001,3805.1,3805.0,15.1024]
[1760164612271,0.001,3805.1,3805.0,15.736]
[1760164612565,0.001,3805.1,3805.0,15.1024]
[1760164613467,2.62905182,3805.1,3805.0,14.9712]
[1760164613977,4.54905182,3805.1,3805.0,14.9712]
[1760164614147,2.62818996,3804.9,3804.8,0.049308]
[1760164614347,4.54818996,3804.9,3804.8,0.049308]
[1760164614938,1.92,3804.9,3804.8,0.520508]
[1760164615368,1.92,3804.9,3804.8,0.651708]
[1760164615672,1.92,3804.9,3804.8,0.520508]
[1760164615875,4.54818996,3804.9,3804.8,15.020508]
[1760164617155,4.54818996,3804.9,3804.8,0.049308]
[1760164618464,5.00618996,3804.9,3804.8,0.049308]
[1760164619174,2.62941088,3803.2,3803.0,0.1075]
[1760164619490,4.54941088,3803.2,3803.1,0.468]
[1760164619726,4.54941088,3803.2,3803.1,14.968]
[1760164619868,4.54941088,3803.2,3803.1,0.468]
[1760164620759,1.92,3803.2,3803.1,0.468]
[1760164621073,1.92,3803.2,3803.1,1.1016]
[1760164621275,0.001,3805.1,3803.1,1.1016]
[1760164621276,2.6289662,3803.8,3803.2,0.6336]
[1760164621474,1.92,3803.7,3803.3,0.468]
[1760164621791,1.92,3803.9,3803.3,0.468]
[1760164621985,2.62882955,3804.0,3803.3,0.468]
[1760164622186,2.62899603,3803.8,3803.3,0.468]
[1760164622778,1.92,3804.1,3803.4,0.468]
[1760164622964,1.92,3804.1,3803.0,0.1075]
[1760164622965,2.62943388,3803.1,3803.0,0.5755]
[1760164623284,1.92,3803.1,3803.0,0.5755]
[1760164623694,4.54943388,3803.1,3803.0,0.5755]
[1760164624302,2.63012545,3802.1,3800.9,2.63093401]
[1760164624494,2.63006849,3802.2,3801.3,2.63067442]
[1760164624697,2.63012545,3802.1,3801.9,0.1075]
[1760164625002,2.63012545,3802.1,3800.3,3.26490549]
[1760164625003,2.63001563,3802.3,3802.0,0.468]
[1760164625172,2.63005628,3802.2,3802.1,0.468]
[1760164625374,2.63032064,3801.9,3801.5,0.1075]
[1760164625587,1.92,3802.3,3802.1,0.2151]
[1760164625787,4.54998711,3802.3,3802.2,0.468]
[1760164626196,2.62922616,3803.5,3802.1,0.2151]
[1760164626400,2.62998711,3802.3,3802.2,0.468]
[1760164626600,4.54998711,3802.3,3802.2,0.468]
[1760164626796,1.92,3802.3,3802.2,0.468]
[1760164627391,4.54998711,3802.3,3802.2,0.468]
[1760164628089,1.92,3802.3,3802.2,0.468]
[1760164628290,4.54998711,3802.3,3802.2,0.468]
[1760164628813,1.92,3802.3,3801.6,0.468]
[1760164628988,2.63040218,3801.7,3801.6,0.468]
[1760164629312,1.92,3802.2,3801.5,0.1075]
[1760164629313,2.63047138,3801.6,3801.5,0.1075]
[1760164629491,2.63047138,3801.6,3801.5,0.5755]
[1760164629688,2.63047138,3801.6,3801.5,0.4755]
[1760164631998,2.63037798,3801.8,3801.5,0.4755]
[1760164632308,2.62979659,3802.6,3801.5,0.4755]
[1760164632508,2.63047138,3801.6,3801.5,0.4755]
[1760164632809,2.63025283,3802.0,3801.5,0.4755]
[1760164632985,2.63036216,3801.8,3801.5,0.4755]
[1760164633318,1.92,3802.0,3801.5,0.4755]
[1760164633495,2.62988116,3802.5,3801.5,0.4775]
[1760164633813,4.54988116,3802.5,3802.4,0.2151]
[1760164634012,4.54988116,3802.5,3802.4,0.6831]
[1760164634214,1.92,3802.5,3802.4,0.6831]
[1760164634419,1.92,3802.5,3801.9,0.468]
[1760164634420,2.63020508,3802.0,3801.9,0.468]
[1760164634735,4.55020508,3802.0,3801.9,0.468]
[1760164634918,1.92,3802.0,3801.9,0.468]
[1760164636211,1.92,3802.0,3801.5,0.4775]
[1760164636411,2.63029892,3801.9,3801.6,0.468]
[1760164636583,2.63040218,3801.7,3801.6,0.468]
[1760164636782,2.63029892,3801.9,3801.5,0.0095]
[1760164636783,1.92,3802.0,3801.7,0.468]
[1760164637016,2.63026381,3801.9,3801.8,0.468]
[1760164637314,2.63036905,3801.8,3801.5,0.0095]
[1760164637516,2.63036905,3801.8,3801.6,0.468]
[1760164637811,2.63036905,3801.8,3801.7,0.468]
[1760164638014,1.92,3802.0,3801.7,0.468]
[1760164638315,1.92,3802.0,3801.5,0.0095]
[1760164638316,2.63039556,3801.8,3801.5,0.0095]
[1760164638527,2.6304201,3801.7,3801.5,0.0095]
[1760164638727,2.63027487,3801.9,3801.5,0.0095]
[1760164638903,2.63034342,3801.8,3801.6,0.468]
[1760164639101,2.63028309,3801.9,3801.7,0.468]
[1760164639331,1.92,3802.0,3801.8,0.468]
[1760164639531,2.63026381,3801.9,3801.8,0.468]
[1760164639913,4.55026381,3801.9,3801.8,0.468]
[1760164640298,2.63047138,3801.6,3801.5,0.4775]
[1760164642037,4.55047138,3801.6,3801.5,0.002]
[1760164643115,19.22087636,3801.6,3801.5,0.002]
[1760164643424,4.55047138,3801.6,3801.5,0.002]
[1760164643626,19.14955587,3801.6,3801.5,0.002]
[1760164645118,19.78315587,3801.6,3801.5,0.002]
[1760164645520,19.78315587,3801.6,3801.1,1e-08]
[1760164645521,4.55074818,3801.2,3801.1,1e-08]
[1760164645936,5.00964818,3801.2,3801.1,1e-08]
[1760164646156,2.63199452,3799.4,3799.3,0.1113]
[1760164646343,2.63186526,3799.6,3799.4,0.468]
[1760164646855,2.63186678,3799.6,3799.5,0.468]
[1760164647227,2.63199452,3799.4,3799.3,0.1113]
[1760164647556,2.63234094,3798.9,3798.8,0.468]
[1760164647758,2.63234094,3798.9,3798.8,0.5793]
[1760164648461,1.92,3800.1,3798.8,0.5793]
[1760164648661,2.63183764,3799.7,3798.8,3.21168851]
[1760164648845,2.63186114,3799.6,3798.9,0.4314]
[1760164649046,1.92,3800.1,3798.9,0.4314]
[1760164649260,2.63164802,3800.0,3798.9,0.4314]
[1760164649458,2.63171745,3799.8,3798.9,0.4314]
[1760164649637,2.63179443,3799.7,3798.9,0.4314]
[1760164649831,2.63198389,3799.5,3798.9,0.4314]
[1760164650032,2.63150969,3800.1,3798.9,0.4314]
[1760164650233,1.92,3800.3,3798.9,0.4314]
[1760164650434,1.92,3800.6,3798.9,0.4314]
[1760164650775,2.63172139,3799.8,3799.0,0.6336]
[1760164651073,2.63174344,3799.8,3799.1,0.4314]
[1760164651280,2.63184418,3799.7,3799.1,0.4314]
[1760164651436,2.63188331,3799.6,3799.1,0.4314]
[1760164651637,4.55178439,3799.8,3799.1,0.4314]
[1760164651839,2.63176792,3799.8,3799.1,0.4314]
[1760164652038,2.63180318,3799.7,3799.1,0.4314]
[1760164652238,2.63202121,3799.4,3799.1,0.4314]
[1760164652535,2.63212034,3799.3,3799.1,0.4314]
[1760164652751,1.92,3799.5,3798.9,0.002]
[1760164652953,1.92,3799.5,3799.2,0.4314]
[1760164653265,2.63102504,3800.8,3799.2,0.4314]
[1760164653464,2.63102504,3800.8,3799.3,0.1312]
[1760164653465,0.1312,3799.9,3799.3,0.1312]
[1760164653666,0.1312,3799.9,3799.5,0.6336]
[1760164653964,2.63149664,3801.6,3799.7,0.1312]
[1760164653965,0.1312,3800.3,3799.7,0.1312]
[1760164654166,0.1312,3800.3,3800.2,0.1113]
[1760164654343,4.6825712,3800.3,3800.2,0.5427]
[1760164654743,2.0512,3800.3,3800.2,0.5427]
[1760164654943,0.1312,3800.3,3800.2,0.5427]
[1760164655169,2.63117834,3800.6,3800.2,0.5427]
[1760164655366,2.63117386,3800.6,3800.3,0.4314]
[1760164655573,2.76229579,3800.7,3800.3,0.4314]
[1760164655868,0.1312,3800.7,3800.3,0.4314]
[1760164656351,2.76232928,3800.7,3800.3,0.4314]
[1760164656551,0.1312,3800.7,3800.3,0.4314]
[1760164656770,0.1312,3800.7,3800.4,0.4314]
[1760164656972,0.1312,3800.7,3800.5,0.4314]
[1760164656973,2.63121887,3800.6,3800.5,0.4314]
[1760164658759,2.6316482,3799.9,3799.8,0.4314]
[1760164659453,2.7628482,3799.9,3799.8,0.4314]
[1760164659665,4.6828482,3799.9,3799.8,0.4314]
[1760164659839,2.6320638,3799.3,3799.2,0.4455]
[1760164660046,2.76320823,3799.4,3799.2,0.4455]
[1760164660247,2.6320638,3799.3,3799.2,0.4455]
[1760164660554,2.6320638,3799.3,3798.9,0.002]
[1760164661151,2.6320638,3799.3,3799.0,0.4455]
[1760164661351,2.7631994,3799.4,3799.1,0.4455]
[1760164661576,2.7631994,3799.4,3799.2,0.4455]
[1760164661777,2.7631994,3799.4,3799.3,0.4455]
[1760164662550,2.7631994,3799.4,3799.1,0.4455]
[1760164662859,2.7631994,3799.4,3798.9,0.002]
[1760164662860,2.63227165,3799.0,3798.9,0.002]
[1760164663055,1.92,3799.8,3798.9,0.002]
[1760164663259,2.63227165,3799.0,3798.9,0.002]
[1760164663472,2.63227165,3799.0,3798.9,0.4475]
[1760164664069,2.63227165,3799.0,3798.9,0.002]
[1760164664578,4.55227165,3799.0,3798.9,0.002]
[1760164666794,1.92,3799.0,3798.9,0.4475]
[1760164668075,2.63129932,3800.5,3799.3,2.63206191]
[1760164668271,2.63129932,3800.5,3800.4,0.1113]
[1760164668476,2.63129932,3800.5,3800.4,0.5568]
[1760164668861,4.55129932,3800.5,3800.4,0.5568]
[1760164669058,2.63129932,3800.5,3800.4,0.5568]
[1760164669763,14.14018449,3801.2,3800.4,0.5568]
[1760164670104,2.63116915,3800.6,3800.4,0.5568]
[1760164671199,2.63116915,3800.6,3800.5,0.4455]
[1760164671899,2.63081739,3801.1,3800.5,0.4455]
[1760164672099,0.001,3800.8,3800.5,0.4455]
[1760164672764,0.001,3800.8,3800.7,0.1312]
[1760164673292,0.001,3800.8,3800.7,3.20779427]
[1760164673496,0.001,3800.8,3800.7,3.84139427]
[1760164674569,0.001,3800.8,3800.7,5.76139427]
[1760164674869,0.001,3800.8,3800.7,5.63019427]
[1760164675066,0.001,3800.8,3800.7,5.76139427]
[1760164681273,50.001,3800.8,3800.7,5.86693976]
[1760164681575,50.001,3800.8,3800.7,5.10213976]
[1760164681790,50.001,3800.8,3800.7,5.73573976]
[1760164682099,50.001,3800.8,3800.7,20.23573976]
[1760164687415,50.001,3800.8,3800.7,17.57659427]
[1760164687579,50.001,3800.8,3800.7,18.21019427]
[1760164687981,50.001,3800.8,3800.7,14.9455]
[1760164689079,52.63202504,3800.8,3800.7,14.9455]
[1760164689419,50.001,3800.8,3800.7,14.9455]
[1760164689916,52.63202504,3800.8,3800.7,14.9455]
[1760164690286,50.001,3800.8,3800.7,14.9455]
[1760164690713,50.001,3800.8,3800.7,15.5791]
[1760164691676,50.001,3800.8,3800.7,15.0767]
[1760164692172,50.001,3800.8,3800.7,14.9455]
[1760164692377,52.63202504,3800.8,3800.7,14.9455]
[1760164693188,52.63202504,3800.8,3800.7,0.4455]
[1760164694622,52.63202504,3800.8,3800.5,14.502]
[1760164694623,2.6311635,3800.6,3800.5,14.502]
[1760164695180,2.6311635,3800.6,3800.5,14.9405]
[1760164695383,4.5511635,3800.6,3800.5,0.4405]
[1760164696804,50.001,3800.8,3800.5,0.4405]
[1760164697173,50.001,3800.8,3800.6,0.6336]
[1760164697374,50.001,3800.8,3800.7,15.5721]
[1760164697575,50.001,3800.8,3800.7,14.9385]
[1760164697802,52.63202504,3800.8,3800.7,14.9385]
[1760164698009,52.63202504,3800.8,3800.7,0.4385]
[1760164698216,2.6311635,3800.6,3800.5,0.002]
[1760164699001,2.6311635,3800.6,3800.5,0.4405]
[1760164699418,4.5511635,3800.6,3800.5,0.002]
[1760164699920,4.5511635,3800.6,3800.5,0.4405]
[1760164702833,4.5511635,3800.6,3800.5,14.9405]
[1760164703603,4.5511635,3800.6,3800.5,0.002]
[1760164707138,50.001,3800.8,3800.5,0.4405]
[1760164707349,2.63109657,3800.7,3800.5,0.4405]
[1760164707636,2.6311635,3800.6,3800.5,0.002]
[1760164708331,2.6311635,3800.6,3800.5,0.4405]
[1760164708646,2.6311635,3800.6,3800.5,0.002]
[1760164708944,2.63115335,3800.7,3800.5,14.9405]
[1760164709112,2.63109427,3800.7,3800.6,0.4568]
[1760164715553,2.63109427,3800.7,3800.5,0.002]
[1760164715554,2.6311635,3800.6,3800.5,0.002]
[1760164716456,2.6311635,3800.6,3800.5,0.4588]
[1760164717657,2.6311635,3800.6,3800.5,14.9588]
[1760164718166,4.5511635,3800.6,3800.5,0.4588]
[1760164718338,4.5511635,3800.6,3800.5,0.002]
[1760164718534,4.5511635,3800.6,3800.5,0.4588]
[1760164719278,4.5511635,3800.6,3800.5,0.002]
[1760164725100,54.5511635,3800.6,3800.5,0.002]
[1760164728578,51.92,3800.6,3800.5,0.4452]
[1760164728815,54.5511635,3800.6,3800.5,0.4452]
[1760164729420,54.5511635,3800.6,3800.5,0.002]
[1760164732048,54.5511635,3800.6,3800.5,0.4452]
[1760164732508,54.5511635,3800.6,3800.5,0.002]
[1760164733009,54.5511635,3800.6,3800.5,0.4452]
[1760164733738,54.5511635,3800.6,3800.5,0.002]
[1760164738246,69.33723698,3800.6,3800.5,0.002]
[1760164739322,69.97083698,3800.6,3800.5,0.002]
[1760164739619,5.71405092,3800.5,3800.4,1e-08]
[1760164740069,2.63320698,3797.7,3797.0,0.1312]
[1760164740364,2.6313712,3800.3,3797.4,0.4693]
[1760164740365,0.1312,3797.8,3797.4,0.4693]
[1760164740543,2.6331727,3797.7,3797.5,0.4693]
[1760164740744,2.6333703,3797.5,3797.1,14.5]
[1760164740958,2.63296471,3798.0,3797.1,14.5]
[1760164741164,2.63347701,3797.3,3797.1,14.5]
[1760164741335,2.63351943,3797.2,3797.1,14.5]
[1760164741923,2.63351943,3797.2,3797.1,14.9693]
[1760164742649,2.63351943,3797.2,3797.1,14.5]
[1760164743325,2.63365815,3797.0,3796.9,0.1075]
[1760164743521,2.63379688,3796.8,3796.7,0.4693]
[1760164743851,2.63379688,3796.8,3796.7,14.5]
[1760164744229,2.63371383,3797.0,3796.7,14.5]
[1760164744552,1.92,3797.5,3796.8,0.4693]
[1760164745059,2.63374077,3796.9,3796.8,0.4693]
[1760164745244,2.63399147,3796.6,3796.4,0.4693]
[1760164745446,1.92,3796.7,3796.5,0.4693]
[1760164745649,1.92,3796.7,3796.6,14.9693]
[1760164745862,2.63366888,3797.0,3796.6,14.9693]
[1760164746163,2.63317944,3797.7,3796.7,3.10310958]
[1760164746332,0.41301986,3798.3,3796.8,1.1029]
[1760164746532,2.63329934,3797.6,3796.9,0.4693]
[1760164746971,0.41301986,3798.3,3796.9,0.4693]
[1760164747150,2.63386625,3796.7,3796.6,14.502]
[1760164747351,1.92,3798.0,3796.6,14.9713]
[1760164747667,1.92,3798.0,3796.7,0.4693]
[1760164747826,2.63311633,3797.8,3796.8,2.63373644]
[1760164748162,1.92,3797.7,3796.9,3.10301061]
[1760164748362,2.63324666,3797.6,3797.0,0.4693]
[1760164748569,2.63355584,3797.2,3797.0,0.4693]
[1760164748767,2.63355584,3797.2,3796.6,0.002]
[1760164748927,2.63336363,3797.5,3796.6,0.002]
[1760164748928,2.63347247,3797.3,3797.1,0.4693]
[1760164749261,2.63347247,3797.3,3797.2,0.4693]
[1760164749835,2.63309379,3797.9,3796.7,0.4693]
[1760164749836,2.63371868,3797.0,3796.7,0.4693]
[1760164750042,2.63372751,3796.9,3796.8,0.4693]
[1760164750642,2.63310337,3797.8,3796.6,0.002]
[1760164750858,2.7649142,3797.0,3796.7,0.4693]
[1760164751056,2.7649142,3797.0,3796.8,0.4693]
[1760164751267,2.63373493,3796.9,3796.8,0.4693]
[1760164751583,4.55386625,3796.7,3796.6,0.002]
[1760164756432,5.01266625,3796.7,3796.6,0.002]
[1760164764879,2.63407438,3796.4,3796.3,1e-08]
[1760164765085,5.18767438,3796.4,3796.3,1e-08]
[1760164765286,6.04424257,3796.4,3796.3,1e-08]
[1760164765594,20.23016978,3796.4,3796.3,1e-08]
[1760164766298,20.51138218,3796.4,3796.3,1e-08]
[1760164766505,20.85379877,3796.4,3796.3,1e-08]
[1760164768409,22.16778818,3796.4,3796.3,1e-08]
[1760164768702,20.85379877,3796.4,3796.3,1e-08]
[1760164768906,21.26707068,3796.4,3796.3,1e-08]
[1760164770072,20.63347068,3796.4,3796.3,1e-08]
[1760164770588,18.08984169,3796.4,3796.3,1e-08]
[1760164770891,17.6920735,3796.4,3796.3,1e-08]
[1760164771092,17.27880159,3796.4,3796.3,1e-08]
[1760164771696,19.19880159,3796.4,3796.3,1e-08]
[1760164772793,17.27880159,3796.4,3796.3,1e-08]
[1760164772982,19.19880159,3796.4,3796.3,1e-08]
[1760164773790,18.74000159,3796.4,3796.3,1e-08]
[1760164773995,16.82000159,3796.4,3796.3,1e-08]
[1760164774326,50.0,3796.4,3796.3,1e-08]
[1760164774513,52.63407438,3796.4,3796.3,1e-08]
[1760164774916,54.55407438,3796.4,3796.3,1e-08]
[1760164775116,52.63407438,3796.4,3796.3,1e-08]
[1760164775894,55.02217438,3796.4,3796.3,1e-08]
[1760164776097,54.55407438,3796.4,3796.3,1e-08]
[1760164776925,55.02217438,3796.4,3796.3,1e-08]
[1760164778595,55.65577438,3796.4,3796.3,1e-08]
[1760164782129,55.02217438,3796.4,3796.3,1e-08]
[1760164782641,4.55435194,3796.0,3795.9,1e-08]
[1760164782854,18.74027915,3796.0,3795.9,1e-08]
[1760164783027,19.37387915,3796.0,3795.9,1e-08]
[1760164783224,20.6020524,3796.0,3795.9,1e-08]
[1760164783438,22.65762046,3796.0,3795.9,1e-08]
[1760164784113,21.21762046,3796.0,3795.9,1e-08]
[1760164784843,22.65762046,3796.0,3795.9,1e-08]
[1760164785141,23.96231702,3796.0,3795.9,1e-08]
[1760164785329,22.52231702,3796.0,3795.9,1e-08]
[1760164786042,22.52231702,3796.0,3791.4,0.1075]
[1760164786043,2.63697775,3792.3,3791.4,0.1075]
[1760164786229,2.2012124,3795.9,3791.5,0.4607]
[1760164786230,14.18592721,3792.5,3791.5,0.4607]
[1760164786431,2.63706552,3792.1,3791.5,0.4607]
[1760164786743,2.63713188,3792.0,3791.6,14.5]
[1760164786942,14.18592721,3792.5,3791.7,0.4607]
[1760164787143,2.63700958,3792.2,3791.7,0.4607]
[1760164787344,2.63700958,3792.2,3791.4,0.1075]
[1760164787345,2.63685265,3792.4,3791.8,0.4607]
[1760164787543,14.18592721,3792.5,3791.9,14.5]
[1760164787839,2.63694261,3792.3,3791.9,14.5]
[1760164788043,14.18592721,3792.5,3791.9,14.5]
[1760164788211,2.63645784,3793.0,3792.4,0.1113]
[1760164788412,14.18592721,3793.2,3792.5,0.4607]
[1760164788853,16.82229084,3793.2,3792.6,14.5]
[1760164789047,2.63636603,3793.1,3792.6,14.5]
[1760164789242,2.56513796,3793.1,3792.7,0.4607]
[1760164789463,14.18592721,3793.2,3792.8,0.4607]
[1760164789663,2.63645145,3793.0,3792.8,0.4607]
[1760164789845,2.63637257,3793.1,3792.9,0.4607]
[1760164790252,2.63643553,3793.0,3792.9,0.4607]
[1760164790561,2.63650504,3792.9,3792.8,14.5]
[1760164791772,1.92,3793.8,3792.8,14.9607]
[1760164791944,2.63606653,3793.6,3792.8,14.9607]
[1760164792273,14.18592721,3793.9,3792.9,0.4607]
[1760164792451,2.63588951,3793.8,3792.9,0.4607]
[1760164792634,16.82174965,3793.9,3793.0,2.63640047]
[1760164793063,14.18592721,3794.6,3793.1,0.4607]
[1760164793234,0.1312,3793.7,3793.3,2.63618732]
[1760164793434,0.1312,3793.7,3793.4,0.4607]
[1760164793836,0.1312,3793.7,3793.4,3.09685354]
[1760164794146,0.1312,3793.7,3793.5,14.9607]
[1760164794558,0.1312,3793.7,3793.6,0.4607]
[1760164796575,0.1312,3793.7,3793.6,3.09671855]
[1760164796777,2.6339451,3796.6,3793.6,1.8907]
[1760164797075,2.63462957,3795.6,3794.3,3.26911952]
[1760164797244,2.63493402,3795.2,3794.6,14.5]
[1760164797445,16.82029278,3796.0,3794.6,14.5]
[1760164797751,14.18592721,3796.0,3794.7,0.4607]
[1760164798374,2.63481036,3795.4,3794.7,0.4607]
[1760164798579,2.63468217,3795.6,3794.7,0.4607]
[1760164798883,2.63468217,3795.6,3794.7,3.09595062]
[1760164799050,2.63468217,3795.6,3794.8,3.06596477]
[1760164799253,2.63468217,3795.6,3794.9,0.4308]
[1760164799471,2.63457036,3795.7,3794.9,3.0659085]
[1760164799676,2.6344903,3795.9,3795.1,2.63497486]
[1760164799975,2.63464903,3795.6,3795.2,0.4308]
[1760164800358,2.63464903,3795.6,3795.3,0.4308]
[1760164800558,2.63464903,3795.6,3794.4,0.1113]
[1760164800559,1.92,3796.3,3795.4,0.4308]
[1760164800758,2.6345787,3795.7,3795.4,0.4308]
[1760164800959,2.63462957,3795.6,3795.5,14.5]
[1760164801361,2.63456752,3795.7,3795.5,14.5]
[1760164801662,1.92,3796.3,3795.5,14.5]
[1760164801863,2.63456727,3795.7,3795.5,14.5]
[1760164802386,2.63456727,3795.7,3795.5,14.9308]
[1760164802547,2.63450623,3795.8,3795.6,0.4308]
[1760164802751,2.63456016,3795.7,3795.6,0.4308]
[1760164805476,50.001,3796.4,3795.6,0.4308]
[1760164805791,50.001,3796.4,3796.3,0.2151]
[1760164806098,50.001,3796.4,3796.3,3.28004377]
[1760164806562,49.526,3796.4,3796.3,17.78004377]
[1760164806764,49.526,3796.4,3796.3,17.91124377]
[1760164807454,49.526,3796.4,3796.3,18.54484377]